bitfinex/quotes_ETHUSD_20241105
["timestamp","ask_amount","ask_price","bid_price","bid_amount"]
[1730829722387,4.6215,2456.1,2455.9,0.05943704]
[1730829722587,5.73809214,2456.1,2455.8,0.05957467]
[1730829722787,4.6215,2456.1,2456.0,0.05929943]
[1730829723015,4.6215,2456.1,2455.9,0.05943704]
[1730829723188,0.55,2456.1,2456.0,0.05929943]
[1730829723529,0.55,2456.1,2455.8,4.07198]
[1730829723671,0.55,2456.1,2456.0,0.05929943]
[1730829723871,0.55,2456.1,2455.7,4.86694]
[1730829724119,0.55,2456.1,2455.8,0.05957467]
[1730829724298,4.07116,2456.3,2455.8,4.13147467]
[1730829724674,4.82249,2456.4,2455.9,4.07166]
[1730829724869,4.07109,2456.4,2456.0,0.86739943]
[1730829725116,4.07109,2456.4,2456.0,4.93905943]
[1730829725696,6.49925136,2456.6,2456.0,4.93891943]
[1730829725893,4.83765,2456.8,2456.1,0.08142475]
[1730829726097,4.83765,2456.8,2456.4,0.7697]
[1730829726286,4.07051,2456.7,2456.5,0.05851211]
[1730829726486,4.83765,2456.8,2456.5,0.05851211]
[1730829726800,0.7864,2457.4,2456.5,0.05851211]
[1730829727005,4.07027,2456.9,2456.5,0.05851211]
[1730829727229,0.7864,2457.0,2456.5,0.05851211]
[1730829727391,0.7864,2457.0,2456.5,4.12923211]
[1730829728016,4.85649,2457.0,2456.5,0.05851211]
[1730829728396,0.7864,2457.0,2456.5,0.05851211]
[1730829728620,6.17577402,2457.1,2456.5,4.21064975]
[1730829728823,2.10585402,2457.1,2456.7,4.07041]
[1730829729030,2.10585402,2457.1,2456.7,8.14079]
[1730829729189,2.10585402,2457.1,2456.8,0.05732351]
[1730829730528,2.10585402,2457.1,2457.0,4.8821]
[1730829730841,2.10585402,2457.1,2457.0,0.8121]
[1730829730999,2.10585402,2457.1,2457.0,4.9391485]
[1730829731198,2.10585402,2457.1,2457.0,0.8691485]
[1730829731816,2.10585402,2457.1,2457.0,4.9391485]
[1730829733306,4.06894,2457.7,2457.0,4.9391485]
[1730829733537,4.06948,2457.4,2457.0,0.8691485]
[1730829733696,4.06952,2457.3,2457.0,0.8691485]
[1730829733911,4.0697,2457.2,2457.0,0.0570485]
[1730829734112,4.06979,2457.2,2456.7,3.8327]
[1730829734320,4.06861286,2457.2,2456.8,0.05707525]
[1730829734935,8.13918,2457.3,2456.8,0.05707525]
[1730829735140,0.7563,2457.4,2456.9,4.07005]
[1730829735495,0.7563,2457.4,2457.0,0.05680024]
[1730829735698,4.8258,2457.4,2457.0,0.05680024]
[1730829736841,0.7563,2457.4,2457.0,0.05680024]
[1730829737016,4.0696,2457.3,2457.0,0.05680024]
[1730829737218,4.0696,2457.3,2456.7,4.90308]
[1730829737417,4.06967,2457.2,2457.1,0.05666275]
[1730829737641,4.06992,2457.1,2456.7,0.8327]
[1730829737939,4.06967,2457.2,2456.7,4.90317]
[1730829738143,4.06967,2457.2,2456.8,0.08139429]
[1730829738461,4.06967,2457.2,2456.7,4.90311]
[1730829738741,4.0695,2457.3,2456.7,4.90308]
[1730829738953,4.0695,2457.3,2456.8,4.07025]
[1730829739557,4.0695,2457.3,2456.7,4.90308]
[1730829739841,4.0695,2457.3,2456.7,0.8327]
[1730829740069,0.48258,2457.3,2456.7,0.8327]
[1730829740350,4.07066,2456.6,2456.5,0.8301]
[1730829745616,4.62066,2456.6,2456.5,0.8301]
[1730829746615,4.07126,2456.3,2455.8,3.0]
[1730829747005,4.07126,2456.3,2455.9,0.05658196]
[1730829747343,4.07104,2456.4,2455.9,0.05658196]
[1730829747746,4.07116,2456.3,2455.9,0.05658196]
[1730829748807,4.07151,2456.1,2455.9,0.05658196]
[1730829749348,0.55,2456.6,2455.2,3.96193389]
[1730829749349,4.07184,2455.9,2455.2,4.13396142]
[1730829749525,4.07216,2455.7,2455.2,4.13396142]
[1730829749867,4.07216,2455.7,2455.0,4.08321]
[1730829749868,4.07232,2455.6,2455.0,1.63057]
[1730829750020,4.07216,2455.7,2455.1,4.07312]
[1730829750350,4.07216,2455.7,2455.1,4.07305]
[1730829750503,4.07208,2455.8,2455.2,4.07285]
[1730829750856,4.07174,2456.0,2455.3,4.07282]
[1730829751005,0.55,2455.9,2455.1,4.0731]
[1730829751213,4.07231,2455.7,2455.1,4.0731]
[1730829751904,4.07231,2455.7,2455.0,7.07329]
[1730829752104,4.0725,2455.5,2455.0,7.07329]
[1730829752329,4.0725,2455.5,2454.8,8.704331]
[1730829752535,4.07203,2455.8,2454.7,4.07372]
[1730829752536,4.07308,2455.2,2454.7,4.07372]
[1730829752744,4.0734,2455.0,2454.5,4.07407]
[1730829752899,4.07348,2454.9,2454.4,4.07429]
[1730829753106,4.07285,2455.3,2454.3,4.07436]
[1730829753348,4.07359,2454.9,2454.3,8.14873]
[1730829753711,4.07348,2454.9,2454.3,4.07435]
[1730829754455,4.0736,2454.9,2454.3,4.07435]
[1730829755243,4.0736,2454.9,2454.3,8.14874]
[1730829755601,4.0736,2454.9,2454.3,4.07435]
[1730829755848,0.55,2455.3,2454.7,4.07366]
[1730829756121,4.07265,2455.4,2454.8,0.08146488]
[1730829756460,4.07282,2455.3,2454.8,4.07365]
[1730829756757,4.07265,2455.4,2454.9,4.13222464]
[1730829756981,4.07258,2455.5,2454.9,4.13222464]
[1730829757258,4.07258,2455.5,2455.0,4.07315]
[1730829757623,4.07226,2455.7,2455.1,4.1315292]
[1730829757961,4.07234,2455.6,2455.1,4.1315292]
[1730829758858,0.55,2455.6,2455.2,4.07298]
[1730829759060,0.55,2455.6,2455.1,4.1315292]
[1730829759260,0.55,2455.6,2455.3,0.05819381]
[1730829759597,4.07195,2455.9,2455.4,0.05805613]
[1730829759598,4.07199,2455.8,2455.4,0.05805613]
[1730829759963,4.07199,2455.8,2455.3,4.07269]
[1730829760171,4.07199,2455.8,2455.5,0.05791846]
[1730829760381,4.07199,2455.8,2455.4,0.05805613]
[1730829760581,4.07199,2455.8,2455.6,0.0577808]
[1730829760790,4.07145,2456.2,2455.5,0.05791846]
[1730829760998,4.07167,2456.0,2455.7,0.05764315]
[1730829761201,4.07167,2456.0,2455.6,0.0577808]
[1730829761361,4.07167,2456.0,2455.8,0.05750551]
[1730829761691,4.07167,2456.0,2455.9,0.05736789]
[1730829761891,4.07167,2456.0,2455.5,4.0724]
[1730829762098,4.07167,2456.0,2455.6,0.0577808]
[1730829762500,4.07183,2455.9,2455.6,0.0577808]
[1730829762711,4.07167,2456.0,2455.3,7.07271]
[1730829762712,4.072,2455.8,2455.3,7.07271]
[1730829762865,4.072,2455.8,2455.4,0.05805613]
[1730829763662,4.072,2455.8,2455.4,4.13069613]
[1730829763857,4.072,2455.8,2455.4,0.05805613]
[1730829764097,4.07215,2455.7,2455.4,0.05805613]
[1730829764292,0.55,2455.7,2455.3,3.0]
[1730829764498,0.55,2455.7,2455.4,0.05777366]
[1730829765021,4.62216,2455.7,2455.4,0.05777366]
[1730829765188,0.55,2455.7,2455.4,0.05777366]
[1730829765523,0.55,2455.7,2455.5,0.05763599]
[1730829765729,0.55,2455.7,2455.2,8.14578]
[1730829766031,0.55,2455.7,2455.3,4.13069134]
[1730829767179,4.6222,2455.7,2455.3,0.05791134]
[1730829767388,4.07253,2455.5,2455.3,0.05791134]
[1730829767626,4.07253,2455.5,2455.0,4.0732]
[1730829767852,4.07253,2455.5,2455.4,0.05777366]
[1730829768031,0.55,2455.6,2454.8,4.07353]
[1730829768348,4.07293,2455.3,2454.8,4.07353]
[1730829768989,4.07293,2455.3,2454.6,4.07383]
[1730829768990,4.07301,2455.2,2454.6,4.07383]
[1730829769184,4.07301,2455.2,2454.7,4.07372]
[1730829769609,4.07293,2455.3,2454.8,4.07363]
[1730829770000,4.07256,2455.5,2455.0,4.07317]
[1730829770001,0.55,2455.4,2455.0,4.07317]
[1730829770414,4.62268,2455.4,2454.8,4.07353]
[1730829770720,4.07284,2455.3,2454.8,4.07353]
[1730829771638,4.07284,2455.3,2454.8,8.14707]
[1730829771797,0.55,2455.4,2454.9,4.07343]
[1730829771997,0.55,2455.4,2455.0,4.0733]
[1730829772544,4.62266,2455.4,2455.0,4.0733]
[1730829772887,0.55,2455.4,2454.9,4.07335]
[1730829773397,0.55,2455.6,2455.2,8.1458]
[1730829773588,0.55,2455.6,2455.2,4.07283]
[1730829773803,4.62233,2455.6,2455.1,4.07314]
[1730829773988,4.0725,2455.5,2455.1,4.07315]
[1730829774512,0.55,2455.6,2455.2,4.07296]
[1730829775201,0.55,2455.6,2455.2,4.07289]
[1730829775793,4.07283,2455.3,2454.8,4.07354]
[1730829776215,4.07283,2455.3,2454.8,4.07358]
[1730829776928,4.07283,2455.3,2454.8,4.07357]
[1730829777140,0.55,2455.4,2454.9,0.08146242]
[1730829777333,4.07227,2455.7,2454.6,3.0]
[1730829777334,4.07227,2455.7,2455.0,4.07321]
[1730829777491,0.55,2455.5,2455.0,4.07324]
[1730829777691,0.55,2455.5,2454.6,3.0]
[1730829777927,4.07273,2455.4,2454.9,4.07341]
[1730829778446,4.62261,2455.5,2454.9,4.07348]
[1730829778447,8.69522,2455.5,2454.9,4.07348]
[1730829778651,8.69522,2455.5,2455.0,0.05832445]
[1730829778805,4.62261,2455.5,2455.0,4.13163445]
[1730829779005,4.07277,2455.4,2455.0,0.05832445]
[1730829779344,4.07284,2455.3,2454.8,8.14705]
[1730829779505,4.07284,2455.3,2454.9,0.05867208]
[1730829779827,8.14581,2455.3,2454.9,0.05867208]
[1730829780037,4.07303,2455.2,2454.9,0.05867208]
[1730829780239,4.942617,2455.2,2454.9,0.05867208]
[1730829780442,4.62324,2455.1,2454.9,0.05867208]
[1730829780752,0.55,2455.5,2455.0,4.13231368]
[1730829780918,4.07248,2455.6,2455.1,4.07305]
[1730829781125,4.07194,2455.9,2455.3,4.07279]
[1730829781323,4.62208,2455.8,2455.4,0.05845289]
[1730829781545,0.55,2455.8,2455.4,0.05845289]
[1730829781746,0.55,2455.6,2455.1,4.07303]
[1730829781949,4.07192,2455.9,2455.3,4.07273]
[1730829782191,4.07167,2456.0,2455.4,4.15396809]
[1730829782310,4.07167,2456.0,2455.4,4.21234082]
[1730829782650,0.814326,2456.0,2455.4,0.05837273]
[1730829782845,4.07223,2455.7,2455.4,0.05837273]
[1730829783017,4.07223,2455.7,2455.1,4.07304]
[1730829783349,7.96241247,2456.1,2455.4,4.07261]
[1730829783350,4.07194,2455.9,2455.4,4.07261]
[1730829783856,8.14389,2455.9,2455.5,0.05823506]
[1730829784208,4.07194,2455.9,2455.5,0.05823506]
[1730829784654,8.14389,2455.9,2455.5,0.05823506]
[1730829784944,4.07199,2455.8,2455.5,0.05823506]
[1730829785246,4.07199,2455.8,2455.2,8.14573]
[1730829785247,4.07199,2455.8,2455.3,4.0728]
[1730829785462,4.07199,2455.8,2455.6,0.0580974]
[1730829785756,4.07194,2455.9,2455.7,0.05795975]
[1730829785971,4.07194,2455.9,2455.4,4.07252]
[1730829786123,4.07194,2455.9,2455.8,0.05782212]
[1730829786325,4.07194,2455.9,2455.4,4.07252]
[1730829786522,4.07194,2455.9,2455.5,0.05823506]
[1730829786717,0.55,2456.0,2455.5,0.05823506]
[1730829786916,4.07161,2456.1,2455.6,4.07223]
[1730829787136,4.07161,2456.1,2455.7,0.05795975]
[1730829787323,4.07166,2456.0,2455.7,0.05795975]
[1730829789241,8.14261,2456.3,2455.7,0.05795975]
[1730829789433,8.14261,2456.3,2455.7,4.13008975]
[1730829789434,4.07129,2456.3,2455.7,4.13008975]
[1730829789610,4.07129,2456.3,2455.8,4.07189]
[1730829789834,4.07129,2456.3,2455.9,4.0718]
[1730829790178,4.07129,2456.3,2455.8,4.12971212]
[1730829790179,4.07129,2456.3,2456.0,0.05754688]
[1730829790361,1.114224,2456.3,2456.0,0.05754688]
[1730829790532,4.07149,2456.1,2455.6,4.0722]
[1730829790736,4.07149,2456.1,2455.7,0.05795975]
[1730829791779,4.07149,2456.1,2455.8,0.7971]
[1730829792153,4.07149,2456.1,2455.9,0.05745169]
[1730829792977,4.62149,2456.1,2456.0,0.05731408]
[1730829793341,4.62149,2456.1,2455.6,4.8323]
[1730829793540,4.62149,2456.1,2455.7,0.05772695]
[1730829793978,4.07199,2455.8,2455.7,0.05772695]
[1730829794491,4.07225,2455.7,2455.4,0.782]
[1730829794640,4.07262,2455.5,2455.2,0.7991]
[1730829794844,4.62247,2455.6,2455.5,0.05800226]
[1730829795033,4.62247,2455.6,2455.0,0.7991]
[1730829795034,4.07268,2455.4,2455.0,0.7991]
[1730829795437,4.07268,2455.4,2455.1,0.05855301]
[1730829796055,8.69491,2455.6,2455.1,0.05855301]
[1730829796371,8.69488,2455.6,2455.1,0.05855301]
[1730829797180,4.07257,2455.5,2455.1,0.05855301]
[1730829798781,4.62244,2455.6,2455.1,0.05855301]
[1730829798953,0.55,2455.7,2455.2,0.7721]
[1730829799157,4.07191,2455.9,2455.4,0.7721]
[1730829799373,4.07191,2455.9,2455.5,0.05800226]
[1730829799541,4.07199,2455.8,2455.5,0.05800226]
[1730829799977,4.07183,2455.9,2455.5,0.05800226]
[1730829800191,5.75639561,2456.0,2455.5,4.13033226]
[1730829800393,4.07176,2456.0,2455.5,4.13033226]
[1730829800746,4.07176,2456.0,2455.5,4.21177383]
[1730829800980,4.07176,2456.0,2455.5,4.13033226]
[1730829801149,4.07176,2456.0,2455.5,4.21177391]
[1730829801348,1.68463561,2456.1,2455.8,4.07199]
[1730829801574,9.82746561,2456.2,2455.9,0.86985169]
[1730829801947,5.75597561,2456.2,2455.9,0.86985169]
[1730829802299,5.75580561,2456.3,2455.9,0.8124]
[1730829802693,0.55,2456.2,2456.0,0.05731408]
[1730829803055,0.55,2456.3,2456.0,0.05731408]
[1730829803553,2.23463561,2456.3,2456.0,0.05731408]
[1730829803791,0.55,2456.3,2456.0,0.05731408]
[1730829804285,1.68463561,2456.4,2456.0,0.05731408]
[1730829804497,0.55,2456.4,2456.1,4.07149]
[1730829804862,0.55,2456.4,2456.2,0.0568824]
[1730829805385,0.55,2456.4,2455.9,8.95581]
[1730829805386,6.52039561,2456.6,2456.3,0.05674482]
[1730829805688,4.07085,2456.5,2456.3,0.05674482]
[1730829805849,4.07085,2456.5,2456.1,0.7702]
[1730829806057,4.07085,2456.5,2456.4,0.05660725]
[1730829806352,4.62085,2456.5,2456.4,0.05660725]
[1730829806558,4.62085,2456.5,2455.9,0.7702]
[1730829806559,4.07146,2456.2,2455.9,0.7702]
[1730829806896,4.07146,2456.2,2456.0,0.05715759]
[1730829807257,4.07146,2456.2,2455.9,0.7702]
[1730829807258,0.55,2456.2,2455.9,0.7702]
[1730829807458,0.55,2456.2,2456.1,0.05701999]
[1730829807997,3.69633991,2456.5,2455.9,0.7702]
[1730829807998,0.55,2456.4,2455.9,0.7702]
[1730829808168,4.07121,2456.3,2456.1,0.05701999]
[1730829808356,0.55,2456.2,2455.9,0.7702]
[1730829808584,0.55,2456.2,2456.0,0.05715759]
[1730829808786,4.62134,2456.2,2456.0,0.05715759]
[1730829810882,8.69281,2456.2,2456.0,0.05715759]
[1730829811228,4.07149,2456.1,2456.0,0.05715759]
[1730829811524,4.62134,2456.2,2455.7,4.89107]
[1730829811725,4.62134,2456.2,2455.8,0.05743283]
[1730829812117,4.07154,2456.1,2455.9,0.05729521]
[1730829812352,4.62166,2456.0,2455.9,0.05729521]
[1730829812633,4.62215,2455.7,2455.4,0.817]
[1730829812923,4.62215,2455.7,2455.4,4.88964]
[1730829812924,0.55,2455.7,2455.4,4.88964]
[1730829813225,0.55,2455.8,2455.4,4.88964]
[1730829813435,4.07211,2455.8,2455.5,0.05782669]
[1730829813725,4.07211,2455.8,2455.4,0.817]
[1730829813726,0.55,2455.7,2455.4,0.817]
[1730829813950,0.55,2455.7,2455.6,0.05768904]
[1730829814115,4.62215,2455.7,2455.5,0.05782669]
[1730829814283,0.55,2455.7,2455.6,0.05768904]
[1730829814603,0.55,2455.9,2455.4,4.88964]
[1730829814798,0.55,2455.7,2455.6,0.05768904]
[1730829815016,0.55,2455.7,2455.5,0.05782669]
[1730829815216,0.55,2455.7,2455.4,0.817]
[1730829815388,5.38017,2455.7,2455.6,0.05768904]
[1730829815587,5.38017,2455.7,2455.2,4.88175]
[1730829815888,5.38017,2455.7,2455.6,0.05768904]
[1730829816109,5.38017,2455.7,2455.2,4.88175]
[1730829816735,5.38017,2455.7,2455.3,0.05810204]
[1730829817109,5.38017,2455.7,2455.2,4.88175]
[1730829817452,5.38017,2455.7,2455.3,0.05810204]
[1730829817742,5.38017,2455.7,2455.2,4.88175]
[1730829818038,5.38017,2455.7,2455.3,0.05820508]
[1730829818193,4.07257,2455.5,2455.3,0.05820508]
[1730829818401,4.07265,2455.4,2455.2,0.8089]
[1730829818809,0.55,2455.5,2455.0,0.8294]
[1730829819137,0.55,2455.5,2454.6,4.90328]
[1730829819138,4.07327,2455.1,2454.6,4.90328]
[1730829819609,0.55,2455.2,2454.6,0.8294]
[1730829819941,8.14644,2455.1,2454.6,0.8294]
[1730829820599,4.07315,2455.1,2454.6,4.90337]
[1730829821121,8.14645,2455.1,2454.6,4.90337]
[1730829821737,4.07315,2455.1,2454.6,4.90337]
[1730829822211,8.1464,2455.1,2454.6,4.90337]
[1730829822414,4.07299,2455.2,2454.7,4.07373]
[1730829822725,0.55,2455.4,2455.0,4.07329]
[1730829822923,4.0726,2455.5,2455.0,4.07321]
[1730829823737,4.0726,2455.5,2455.1,0.05875528]
[1730829824796,4.07281,2455.4,2455.1,0.05875528]
[1730829824995,4.07298,2455.2,2454.8,0.8136]
[1730829825311,8.1461,2455.2,2454.9,0.05903072]
[1730829825514,4.07298,2455.2,2454.9,0.05903072]
[1730829825713,4.62315,2455.1,2454.9,0.05903072]
[1730829827243,0.55,2455.1,2454.9,0.05903072]
[1730829827513,4.07242,2455.6,2455.1,0.7642]
[1730829827711,4.07249,2455.5,2455.1,0.7642]
[1730829827913,4.07249,2455.5,2455.2,0.05861757]
[1730829828843,4.07232,2455.6,2455.2,0.05861757]
[1730829829014,4.07266,2455.4,2455.2,0.05861757]
[1730829829194,4.07256,2455.5,2455.2,0.05861757]
[1730829832210,4.07232,2455.6,2455.2,0.05861757]
[1730829832565,4.072,2455.8,2455.4,4.07261]
[1730829832850,4.07183,2455.9,2455.5,0.05836486]
[1730829833647,0.8177,2456.1,2455.5,0.05836486]
[1730829833962,5.75580561,2456.3,2455.7,0.7762]
[1730829834127,6.99091579,2456.4,2455.7,4.84834]
[1730829834128,4.07134,2456.2,2455.7,4.84834]
[1730829834320,4.07134,2456.2,2455.8,4.12992192]
[1730829834520,4.07134,2456.2,2455.8,0.05795192]
[1730829834955,4.07134,2456.2,2455.7,4.84835]
[1730829835115,4.07134,2456.2,2455.9,0.0578143]
[1730829835456,4.07134,2456.2,2455.7,4.84835]
[1730829835671,4.07117,2456.3,2456.0,0.05767668]
[1730829835830,4.07117,2456.3,2455.9,4.07182]
[1730829836030,4.07117,2456.3,2456.1,0.05753908]
[1730829836345,0.8177,2456.4,2456.1,0.05753908]
[1730829836346,4.071,2456.4,2456.1,0.7973]
[1730829836651,4.07127,2456.3,2456.2,0.05740149]
[1730829837322,4.07127,2456.3,2456.1,0.7973]
[1730829837527,4.07127,2456.3,2456.2,0.05740149]
[1730829839961,4.071,2456.4,2456.2,0.05740149]
[1730829840142,8.14215,2456.4,2456.2,0.05740149]
[1730829840325,4.07116,2456.3,2456.2,0.05740149]
[1730829840930,4.071,2456.4,2456.2,0.05740149]
[1730829841117,4.86466,2456.6,2456.2,0.05740149]
[1730829841319,4.07092,2456.5,2456.1,0.7973]
[1730829841523,4.07092,2456.5,2456.3,0.05695858]
[1730829841743,4.07092,2456.5,2456.2,0.05709616]
[1730829841931,4.07092,2456.5,2456.4,0.05682101]
[1730829842135,4.07092,2456.5,2456.3,0.05695858]
[1730829842332,4.07099,2456.4,2456.3,0.05695858]
[1730829842553,4.07099,2456.4,2456.1,0.7973]
[1730829842722,4.07099,2456.4,2456.3,0.05695858]
[1730829842920,4.07099,2456.4,2456.2,0.05709616]
[1730829843116,4.07099,2456.4,2456.3,0.05695858]
[1730829843358,4.07099,2456.4,2456.1,0.7973]
[1730829843558,4.07099,2456.4,2456.3,0.05695858]
[1730829843746,4.07099,2456.4,2456.2,0.05709616]
[1730829843952,4.07099,2456.4,2456.3,0.05695858]
[1730829843953,6.302463,2456.4,2456.3,0.05695858]
[1730829844320,0.55,2456.2,2455.5,0.7833]
[1730829844525,8.14352,2456.0,2455.5,0.7833]
[1730829844825,0.7879,2456.3,2455.6,4.07222]
[1730829844826,4.07142,2456.2,2455.6,4.07222]
[1730829845022,4.07108,2456.4,2455.9,0.8125]
[1730829845245,8.14219,2456.4,2455.9,4.8843]
[1730829845424,4.07108,2456.4,2455.9,4.8842]
[1730829845620,0.7726,2456.5,2455.9,4.8842]
[1730829845824,4.07109,2456.4,2455.9,4.8842]
[1730829846069,0.7726,2456.5,2456.0,4.07154]
[1730829846654,4.84343,2456.5,2456.0,4.07154]
[1730829847564,4.07083,2456.5,2456.0,4.07154]
[1730829848271,4.07083,2456.5,2455.9,4.8842]
[1730829848762,4.07083,2456.5,2456.0,4.07166]
[1730829849723,4.07083,2456.5,2456.0,8.14324]
[1730829850349,4.07083,2456.5,2456.0,4.07158]
[1730829851166,4.07078,2456.6,2456.1,4.07148]
[1730829851487,4.07017,2456.9,2456.4,4.0709]
[1730829852235,4.07013,2457.0,2456.4,4.0709]
[1730829852479,4.87965,2457.1,2456.6,4.07057]
[1730829852942,4.87965,2457.1,2456.7,0.05417772]
[1730829853536,4.06985,2457.1,2456.7,4.12467772]
[1730829854069,4.06985,2457.1,2456.7,0.05417772]
[1730829854276,4.86974,2457.3,2456.7,0.05417772]
[1730829854277,0.55,2457.2,2456.7,4.12451772]
[1730829854446,4.68463561,2457.4,2456.7,4.12451772]
[1730829854447,3.0,2457.4,2456.8,0.7855]
[1730829854769,4.06954,2457.3,2456.8,0.8394802]
[1730829854970,4.06954,2457.3,2456.8,4.9097202]
[1730829855530,4.06975,2457.2,2456.8,0.8394802]
[1730829855751,4.06991,2457.1,2456.8,0.8394802]
[1730829856062,4.07,2457.0,2456.8,0.0539802]
[1730829856369,4.07016,2456.9,2456.6,0.8163]
[1730829857039,4.07,2457.0,2456.6,0.8163]
[1730829863843,8.14016,2457.0,2456.6,0.8163]
[1730829864044,4.07,2457.0,2456.6,0.8163]
[1730829868578,4.07,2457.0,2456.7,0.05355823]
[1730829870746,8.14011,2457.0,2456.7,0.05355823]
[1730829871877,4.07,2457.0,2456.7,0.05355823]
[1730829873787,8.14012,2457.0,2456.7,0.05355823]
[1730829873993,4.07033,2456.8,2456.7,0.05355823]
[1730829876955,4.07001,2457.0,2456.7,0.05355823]
[1730829878107,2.44243561,2457.3,2456.7,0.05355823]
[1730829878108,4.06951,2457.3,2456.9,4.07014]
[1730829878407,4.06951,2457.3,2457.0,0.8217]
[1730829878558,4.06951,2457.3,2457.0,0.87477718]
[1730829879109,1.68463561,2457.5,2457.0,4.94467718]
[1730829879265,4.06912,2457.6,2457.1,4.06979]
[1730829879465,4.06912,2457.6,2457.1,4.12270686]
[1730829880175,4.06897,2457.7,2457.1,4.12266686]
[1730829880375,4.06894,2457.7,2457.2,4.85696]
[1730829880777,4.06903,2457.6,2457.3,0.05250497]
[1730829881295,4.06903,2457.6,2457.4,0.05231426]
[1730829881503,4.06903,2457.6,2457.2,4.85696]
[1730829881804,4.06903,2457.6,2457.5,0.05217681]
[1730829881973,4.06903,2457.6,2457.2,4.85696]
[1730829882168,4.06897,2457.7,2457.5,0.05217681]
[1730829882506,4.06909,2457.6,2457.2,0.7874]
[1730829882974,1.68463561,2457.9,2456.8,4.07024]
[1730829882975,4.06949,2457.4,2456.8,4.07024]
[1730829883176,4.06951,2457.3,2456.8,4.07024]
[1730829883377,4.06951,2457.3,2456.9,4.07014]
[1730829883696,4.06951,2457.3,2457.0,0.81874513]
[1730829883884,4.06935,2457.4,2457.0,0.81874513]
[1730829885694,0.7989,2457.8,2457.2,4.06966]
[1730829885911,4.06884,2457.7,2457.3,0.7724]
[1730829886211,4.06902,2457.6,2457.3,0.8248327]
[1730829889377,8.13746,2457.8,2457.3,4.8943127]
[1730829889582,4.06886,2457.7,2457.3,0.8248327]
[1730829891912,4.06908,2457.6,2457.3,0.8248327]
[1730829892592,8.13817,2457.6,2457.3,0.8248327]
[1730829893026,4.06908,2457.6,2457.3,0.8248327]
[1730829893600,4.06885,2457.7,2457.3,4.8943327]
[1730829893804,5.75331561,2457.8,2457.3,8.9637527]
[1730829894326,5.75331561,2457.8,2457.3,4.8942527]
[1730829894538,4.06886,2457.7,2457.3,0.8248327]
[1730829895234,8.13779,2457.7,2457.3,0.8248327]
[1730829895933,4.06886,2457.7,2457.3,0.8248327]
[1730829896538,1.68463561,2457.8,2457.4,4.06922]
[1730829896714,5.75328561,2457.9,2457.5,0.8296]
[1730829897033,2.10298758,2458.0,2457.5,4.95074129]
[1730829897034,5.75297561,2458.0,2457.5,4.95074129]
[1730829897246,3.8156,2458.2,2457.7,4.89837]
[1730829897247,5.75266561,2458.2,2457.7,4.89837]
[1730829897403,5.75248561,2458.3,2457.8,4.06865]
[1730829897599,5.75244561,2458.4,2457.9,4.89803]
[1730829897798,5.75240561,2458.4,2457.9,0.8296]
[1730829897995,4.06777,2458.4,2458.0,0.05136423]
[1730829898638,4.06787,2458.3,2458.0,0.05136423]
[1730829900240,4.06801,2458.2,2458.0,0.05136423]
[1730829900756,4.06818,2458.1,2458.0,0.05136423]
[1730829900959,4.06851,2457.9,2457.5,0.8012]
[1730829901544,4.06877,2457.8,2457.5,0.8012]
[1730829901753,4.06851,2457.9,2457.5,0.8012]
[1730829901908,4.06867,2457.8,2457.5,0.8012]
[1730829902322,4.06884,2457.7,2457.5,0.8012]
[1730829902848,4.06917,2457.5,2457.1,0.831]
[1730829903410,4.06901,2457.6,2457.1,0.831]
[1730829903718,8.13812,2457.6,2457.1,0.831]
[1730829903917,4.06901,2457.6,2457.1,4.90069]
[1730829904153,4.06917,2457.5,2457.1,0.831]
[1730829909434,4.06938,2457.4,2457.1,0.831]
[1730829909641,4.06962,2457.3,2457.1,0.3]
[1730829910333,8.13884,2457.4,2457.1,0.3]
[1730829911058,4.06954,2457.3,2457.1,0.3]
[1730829913755,4.06954,2457.3,2457.2,0.05231914]
[1730829913944,5.813883,2457.3,2457.2,0.05231914]
[1730829914140,4.06967,2457.2,2457.1,0.3]
[1730829919962,4.06967,2457.2,2457.1,0.35096745]
[1730829920856,4.06967,2457.2,2457.1,0.3]
[1730829922781,5.75430561,2457.2,2457.1,0.3]
[1730829922986,5.84400964,2457.2,2457.1,0.3]
[1730829924044,5.84400964,2457.2,2457.1,0.35112695]
[1730829924268,4.06967,2457.2,2457.1,0.35112695]
[1730829924469,11.56810861,2457.3,2457.1,0.35112695]
[1730829924785,4.06935,2457.4,2457.1,1.0654]
[1730829925035,4.06942,2457.4,2457.2,0.05098947]
[1730829925479,4.06928,2457.5,2457.2,0.05098947]
[1730829925480,4.0695,2457.3,2457.2,0.05098947]
[1730829927073,4.06967,2457.2,2457.1,0.3]
[1730829927450,4.06967,2457.2,2457.1,0.35112695]
[1730829929669,4.0695,2457.3,2457.1,0.35112695]
[1730829930093,8.13912,2457.3,2457.1,0.35112695]
[1730829930270,4.06967,2457.2,2457.1,0.35112695]
[1730829932777,4.0695,2457.3,2457.1,0.35112695]
[1730829933105,8.13915,2457.3,2457.1,0.35112695]
[1730829934015,4.0695,2457.3,2457.1,0.35112695]
[1730829934573,1.68463561,2457.5,2457.1,0.35112695]
[1730829934866,4.06917,2457.5,2457.1,0.35112695]
[1730829935072,4.06945,2457.4,2457.1,0.35112695]
[1730829935773,4.06967,2457.2,2457.1,0.35112695]
[1730829940689,4.82367,2457.2,2457.1,0.35112695]
[1730829940891,6.50830561,2457.2,2457.1,0.3]
[1730829941328,4.82367,2457.2,2457.1,0.3]
[1730829941633,4.82367,2457.2,2457.1,0.35115729]
[1730829941782,6.19025275,2457.2,2457.1,0.35115729]
[1730829942317,6.19025275,2457.2,2457.1,0.3]
[1730829942678,8.42488836,2457.2,2457.1,0.3]
[1730829944713,8.84570371,2457.2,2457.1,0.3]